bitfinex-derivatives/quotes_ETHF0:USTF0_20250416
["timestamp","ask_amount","ask_price","bid_price","bid_amount"]
[1744797790718,2.07009,1573.2,1573.1,0.00955536]
[1744797790918,7.07009,1573.2,1573.1,0.00955536]
[1744797793430,2.07009,1573.2,1573.1,0.00955536]
[1744797793729,7.07009,1573.2,1573.1,0.00955536]
[1744797794122,8.83379,1573.2,1573.1,0.00955536]
[1744797794820,1.2718,1572.7,1572.6,40.8]
[1744797795129,1.2718,1572.7,1572.6,42.07188]
[1744797795627,4.4796,1572.7,1572.6,42.07188]
[1744797795823,1.27202,1572.5,1572.2,3.18042]
[1744797796129,3.03579,1572.4,1572.3,1.27212]
[1744797796625,1.27212,1572.3,1572.2,1.28174536]
[1744797796829,3.03582,1572.3,1572.2,40.80955536]
[1744797797217,6.24362,1572.3,1572.2,40.80955536]
[1744797797419,6.24362,1572.3,1572.2,42.08175536]
[1744797797629,3.86802,1572.3,1572.2,42.08175536]
[1744797798023,7.07582,1572.3,1572.2,40.80955536]
[1744797799529,12.07582,1572.3,1572.2,40.80955536]
[1744797799725,12.07582,1572.3,1572.2,0.00955536]
[1744797800229,12.07582,1572.3,1572.2,40.80955536]
[1744797800431,7.07582,1572.3,1572.2,40.80955536]
[1744797800931,5.8037,1572.3,1572.2,42.08175536]
[1744797801230,2.5959,1572.3,1572.2,42.08175536]
[1744797801424,3.86802,1572.3,1572.2,42.08175536]
[1744797801624,3.86802,1572.3,1572.2,40.80955536]
[1744797801936,3.86802,1572.3,1572.2,42.08175536]
[1744797802130,3.86802,1572.3,1572.2,40.80955536]
[1744797802331,7.07582,1572.3,1572.2,40.80955536]
[1744797803037,12.07582,1572.3,1572.2,0.00955536]
[1744797803336,22.45682,1572.3,1572.2,5.36e-06]
[1744797803533,22.45682,1572.3,1571.6,1.27267]
[1744797803534,1.2726,1571.7,1571.6,1.27267]
[1744797803932,2.09758,1571.8,1571.7,1.2726]
[1744797804129,1.2726,1571.7,1571.6,42.07263]
[1744797804336,0.825,1571.8,1571.6,40.8]
[1744797804538,2.10712536,1571.8,1571.7,1.2726]
[1744797805739,0.83455536,1571.8,1571.6,42.4079]
[1744797805944,1.2726,1571.7,1571.6,43.68052]
[1744797806144,4.4804,1571.7,1571.6,43.68052]
[1744797806440,1.2726,1571.7,1571.6,43.68052]
[1744797806747,1.6305,1571.7,1571.6,43.68059]
[1744797807545,2.10708536,1571.8,1571.7,1.2726]
[1744797807743,3.73758536,1571.8,1571.7,1.2726]
[1744797807941,6.94538536,1571.8,1571.7,1.2726]
[1744797808146,2.46505536,1571.8,1571.7,1.2726]
[1744797808347,3.73757536,1571.8,1571.7,1.2726]
[1744797808549,6.94537536,1571.8,1571.7,2.9612]
[1744797809040,3.73757536,1571.8,1571.7,2.9612]
[1744797810245,6.94537536,1571.8,1571.7,2.9612]
[1744797810548,3.73757536,1571.8,1571.7,2.9612]
[1744797811545,1.2726,1571.7,1571.6,42.07264]
[1744797811737,2.9529,1571.7,1571.6,43.67414]
[1744797812148,0.00955536,1571.8,1571.7,1.2726]
[1744797812345,0.00955536,1571.8,1571.7,2.8741]
[1744797813052,0.00955536,1571.8,1571.7,7.8741]
[1744797813256,0.00955536,1571.8,1571.7,12.3201]
[1744797814555,1.28207536,1571.8,1571.7,7.3201]
[1744797815439,4.48987536,1571.8,1571.7,7.3201]
[1744797815638,1.28207536,1571.8,1571.7,7.3201]
[1744797816551,1.28207536,1571.8,1571.7,2.8741]
[1744797819453,0.00955536,1571.8,1571.7,2.8741]
[1744797819643,0.00955536,1571.8,1571.7,7.8741]
[1744797820047,2.5134,1572.1,1572.0,1.27236]
[1744797820251,3.78568,1572.1,1572.0,1.27236]
[1744797820444,4.48007,1572.2,1571.9,5.74391]
[1744797820650,6.15877,1572.2,1572.1,1.27228]
[1744797821148,6.15877,1572.2,1572.1,2.99968]
[1744797821449,3.2078,1572.2,1572.1,2.99968]
[1744797822555,0.00955536,1572.3,1572.2,1.2722]
[1744797822872,4.4796,1572.7,1572.6,1.27188]
[1744797823048,4.47966,1572.7,1572.6,1.27188]
[1744797823353,1.27188,1572.6,1572.5,2.9483]
[1744797823954,1.27196,1572.5,1572.4,5.72753536]
[1744797824146,4.47976,1572.5,1572.4,7.40393536]
[1744797824450,1.27193,1572.6,1572.5,1.27193]
[1744797824646,1.27196,1572.5,1572.4,7.40394536]
[1744797824852,1.27182,1572.7,1572.6,1.2718]
[1744797825047,3.00112,1572.7,1572.6,1.2718]
[1744797825452,4.47962,1572.7,1572.6,42.0718]
[1744797825760,4.47962,1572.7,1572.6,41.6795]
[1744797826251,4.47962,1572.7,1572.6,42.95138]
[1744797826450,1.27182,1572.7,1572.6,42.95138]
[1744797826651,3.00107,1572.8,1572.7,1.2718]
[1744797827355,3.00107,1572.8,1572.7,3.0346]
[1744797827553,3.00107,1572.8,1572.7,1.7628]
[1744797827748,3.00107,1572.8,1572.7,3.0346]
[1744797828653,3.2078,1572.9,1572.8,1.27171]
[1744797828950,4.9169,1573.1,1572.9,1.27155]
[1744797829152,6.18844,1573.1,1573.0,1.27155]
[1744797829351,1.27155,1573.0,1572.9,2.93385]
[1744797829548,1.27155,1573.0,1572.9,1.6623]
[1744797829745,1.27171,1572.8,1572.7,5.71677]
[1744797829947,1.27171,1572.8,1572.7,46.51677]
[1744797830351,2.98081,1572.8,1572.7,46.51677]
[1744797831059,4.47949,1572.9,1572.8,1.27171]
[1744797832057,3.2078,1572.9,1572.8,1.27171]
[1744797832253,4.47943,1572.9,1572.8,1.27171]
[1744797832453,6.13163,1572.9,1572.8,1.27171]
[1744797833260,4.86,1572.9,1572.8,1.27171]
[1744797833461,6.13163,1572.9,1572.8,2.92891]
[1744797833958,6.13163,1572.9,1572.8,1.27171]
[1744797834859,4.47943,1572.9,1572.8,1.27171]
[1744797835058,1.27163,1572.9,1572.8,1.27171]
[1744797835561,4.47943,1572.9,1572.8,1.27171]
[1744797836860,1.27171,1572.8,1572.7,42.07172]
[1744797837060,2.97351,1572.8,1572.7,42.07172]
[1744797837653,1.7018,1572.8,1572.7,42.07172]
[1744797837960,1.7018,1572.8,1572.7,43.81952]
[1744797839357,3.2078,1572.9,1572.8,1.27171]
[1744797839560,2.97321,1573.2,1573.1,1.27147]
[1744797840561,1.27147,1573.1,1573.0,1.27149]
[1744797840755,1.27163,1573.0,1572.9,1.27159]
[1744797840954,1.27163,1572.9,1572.8,2.11195]
[1744797841155,3.2078,1572.9,1572.7,43.97949]
[1744797841354,1.7404,1572.8,1572.7,42.0718]
[1744797841657,1.7404,1572.8,1572.7,43.7057]
[1744797844461,5.30012,1573.0,1572.9,1.27163]
[1744797844763,7.01292,1573.0,1572.9,1.27163]
[1744797845561,1.7128,1573.0,1572.9,1.27163]
[1744797845768,1.7128,1573.0,1572.9,2.92993]
[1744797845769,2.98435,1573.0,1572.9,2.92993]
[1744797845963,6.19215,1573.0,1572.9,2.92993]
[1744797846163,1.27171,1572.9,1572.8,1.27165]
[1744797846462,2.95431,1572.9,1572.8,1.27165]
[1744797847661,2.95423,1572.9,1572.8,1.27165]
[1744797850065,1.27171,1572.8,1572.7,40.8]
[1744797850366,7.93331,1572.8,1572.7,40.8]
[1744797850568,1.2718,1572.7,1572.5,1.27189]
[1744797850761,1.27196,1572.5,1572.4,1.28153536]
[1744797851164,3.82716,1572.5,1572.4,1.28153536]
[1744797855564,13.16275,1572.8,1572.6,1.27182]
[1744797855769,1.6403,1572.7,1572.6,1.27182]
[1744797855970,11.22586,1572.8,1572.7,1.2718]
[1744797856271,9.1438,1572.8,1572.7,1.2718]
[1744797856473,9.1438,1572.8,1572.7,4.6031]
[1744797856668,10.41551,1572.8,1572.7,1.2718]
[1744797856974,1.27186,1572.7,1572.6,1.2718]
[1744797857169,2.91216,1572.7,1572.6,2.9213]
[1744797858066,1.6403,1572.7,1572.6,2.9213]
[1744797858267,4.47951,1572.8,1572.7,1.2718]
[1744797858572,4.47951,1572.8,1572.7,3.0158]
[1744797858772,3.2078,1572.8,1572.7,3.0158]
[1744797858971,4.47951,1572.8,1572.7,3.0158]
[1744797859172,3.2078,1572.8,1572.7,3.0158]
[1744797860762,4.47951,1572.8,1572.7,3.0158]
[1744797860966,3.2078,1572.8,1572.7,3.0158]
[1744797861466,4.47951,1572.8,1572.7,3.0158]
[1744797861872,1.27171,1572.8,1572.7,3.0158]
[1744797862270,2.98559,1572.9,1572.8,1.27171]
[1744797862476,1.7139,1572.9,1572.8,1.27171]
[1744797862777,1.7139,1572.9,1572.8,3.79881]
[1744797863375,1.27179,1572.8,1572.7,1.27172]
[1744797863579,4.47959,1572.8,1572.7,1.27172]
[1744797864277,1.27188,1572.7,1572.6,1.27181]
[1744797864476,3.78878,1572.7,1572.6,1.27181]
[1744797864876,3.78878,1572.7,1572.5,3.90219]
[1744797864877,1.27188,1572.6,1572.5,3.90219]
[1744797865175,4.8987,1572.6,1572.5,3.90219]
[1744797865579,6.17058,1572.6,1572.5,3.90219]
[1744797865879,6.17058,1572.6,1572.5,2.13699]
[1744797866475,4.8987,1572.6,1572.5,2.13699]
[1744797867478,6.17058,1572.6,1572.5,2.13699]
[1744797867989,6.17058,1572.6,1572.5,1.27189]
[1744797869576,4.8987,1572.6,1572.5,1.27189]
[1744797869779,6.17058,1572.6,1572.5,1.27189]
[1744797870180,6.17058,1572.6,1572.5,2.99299]
[1744797871082,1.27196,1572.5,1572.4,1.28153536]
[1744797871283,2.90586,1572.5,1572.4,1.28153536]
[1744797871486,2.90586,1572.5,1572.4,2.97763536]
[1744797872391,1.6339,1572.5,1572.4,2.97763536]
[1744797872885,2.90586,1572.5,1572.4,2.97763536]
[1744797874289,2.90586,1572.5,1572.4,1.28153536]
[1744797875688,1.6339,1572.5,1572.4,1.28153536]
[1744797875891,1.6339,1572.5,1572.4,3.02273536]
[1744797876591,0.826,1572.7,1572.6,1.27188]
[1744797877089,12.43070808,1572.8,1572.7,1.2718]
[1744797877387,11.15892808,1572.8,1572.7,1.2718]
[1744797877586,6.28022808,1572.8,1572.7,3.0306]
[1744797879493,6.28022808,1572.8,1572.7,8.0306]
[1744797881197,6.28022808,1572.8,1572.7,3.0306]
[1744797881389,9.25043808,1572.8,1572.7,5.7008]
[1744797881887,2.97021,1572.8,1572.7,5.7008]
[1744797882095,2.97021,1572.8,1572.7,1.2718]
[1744797882295,6.17801,1572.8,1572.7,1.2718]
[1744797882793,1.2718,1572.7,1572.6,1.27183]
[1744797882995,4.6671,1572.7,1572.6,1.27183]
[1744797883186,3.3953,1572.7,1572.6,1.27183]
[1744797883387,4.6671,1572.7,1572.6,1.27183]
[1744797884091,3.3953,1572.7,1572.6,1.27183]
[1744797884291,4.6671,1572.7,1572.6,1.27183]
[1744797884793,2.5481,1572.7,1572.6,1.27183]
[1744797884995,2.5481,1572.7,1572.6,3.00123]
[1744797885496,1.6799,1572.7,1572.6,3.87643]
[1744797887182,3.2078,1572.8,1572.6,3.87643]
[1744797887183,3.2078,1572.8,1572.7,1.2718]
[1744797887390,0.8688,1572.9,1572.8,1.27171]
[1744797887391,1.7049,1572.9,1572.8,1.27171]
[1744797887795,1.7049,1572.9,1572.8,2.99201]
[1744797892093,4.9127,1572.9,1572.8,2.99201]
[1744797893695,4.9127,1572.9,1572.8,1.27171]
[1744797893891,4.9127,1572.9,1572.7,1.27173]
[1744797893892,1.27178,1572.8,1572.7,1.27173]
[1744797894091,2.07728,1572.8,1572.7,1.27173]
[1744797894499,3.2078,1572.9,1572.7,1.27173]
[1744797894500,3.2078,1572.9,1572.8,1.27171]
[1744797894702,4.47943,1572.9,1572.8,1.27171]
[1744797894996,3.2078,1572.9,1572.8,1.27171]
[1744797896796,3.2078,1572.9,1572.8,3.84521]
[1744797896988,0.8472,1573.0,1572.9,1.27163]
[1744797897297,11.56506808,1573.1,1573.0,1.27155]
[1744797897497,12.36826808,1573.1,1573.0,1.27155]
[1744797898299,7.08572808,1573.1,1573.0,1.27155]
[1744797898494,6.28022808,1573.1,1573.0,2.14215]
[1744797898799,6.28022808,1573.1,1573.0,3.88795]
[1744797899002,10.75936808,1573.3,1573.2,1.27139]
[1744797899304,9.48802808,1573.3,1573.2,1.27139]
[1744797899499,10.75933808,1573.3,1573.2,1.27139]
[1744797900300,9.48802808,1573.3,1572.9,3.17902]
[1744797900510,7.55153808,1573.3,1573.2,40.8]
[1744797900704,15.75933808,1573.3,1573.2,40.8]
[1744797900897,15.75933808,1573.3,1573.2,42.07139]
[1744797901103,10.75933808,1573.3,1573.2,42.07139]
[1744797901798,10.75933808,1573.3,1573.2,40.8]
[1744797901998,12.46033808,1573.3,1573.2,40.8]
[1744797902800,12.46033808,1573.3,1573.2,42.07139]
[1744797904714,6.18011,1573.3,1573.2,42.07139]
[1744797905209,4.9088,1573.3,1573.2,42.07139]
[1744797905411,4.9088,1573.3,1573.2,43.76119]
[1744797905705,6.18011,1573.3,1573.2,43.76119]
[1744797905902,6.18011,1573.3,1573.2,42.07139]
[1744797906611,6.18011,1573.3,1573.2,40.8]
[1744797906811,6.18011,1573.3,1573.2,42.07139]
[1744797911309,4.9088,1573.3,1573.2,42.07139]
[1744797911707,4.9088,1573.3,1573.2,44.52799]
[1744797911912,6.18011,1573.3,1573.2,44.52799]
[1744797912919,4.9088,1573.3,1573.2,44.52799]
[1744797913532,9.48802808,1573.5,1573.4,1.27123]
[1744797913728,6.28022808,1573.5,1573.4,1.27123]
[1744797913923,6.28022808,1573.5,1573.4,3.77223]
[1744797914930,7.94262808,1573.5,1573.4,3.77223]
[1744797915437,1.6624,1573.5,1573.4,3.77223]
[1744797916237,6.14135,1573.5,1573.4,1.27123]
[1744797919941,16.69495808,1573.8,1573.7,1.27099]
[1744797920141,16.26302808,1573.8,1573.7,1.27099]
[1744797920441,17.53393808,1573.8,1573.7,1.27099]
[1744797921929,19.18913808,1573.8,1573.7,1.27099]
[1744797922134,17.91822808,1573.8,1573.7,1.27099]
[1744797922442,12.21622808,1573.8,1573.7,1.27099]
[1744797922642,12.21622808,1573.8,1573.7,2.95219]
[1744797922835,6.28022808,1573.8,1573.7,2.95219]
[1744797923339,7.55113808,1573.8,1573.7,2.95219]
[1744797923637,9.27853808,1573.8,1573.7,2.95219]
[1744797923944,2.99831,1573.8,1573.7,1.27099]
[1744797924145,2.5584,1573.8,1573.7,1.27099]
[1744797924443,3.82931,1573.8,1573.7,1.27099]
[1744797927245,7.03711,1573.8,1573.7,1.27099]
[1744797927441,1.27123,1573.4,1573.3,0.00955536]
[1744797927740,1.27123,1573.4,1573.0,1.27149]
[1744797927741,1.27147,1573.1,1573.0,1.27149]
[1744797927931,1.27147,1573.1,1573.0,42.07149]
[1744797928845,1.61415536,1573.2,1573.1,1.27147]
[1744797929240,1.61415536,1573.2,1573.1,2.14687]
[1744797929447,1.61415536,1573.2,1573.1,3.75457]
[1744797929744,2.88554536,1573.2,1573.1,2.14687]
[1744797930448,2.88554536,1573.2,1573.1,1.27147]
[1744797930650,3.70314536,1573.2,1573.1,1.27147]
[1744797930848,2.43175536,1573.2,1573.1,1.27147]
[1744797931148,1.61415536,1573.2,1573.1,1.27147]
[1744797931350,1.61415536,1573.2,1573.1,2.87917]
[1744797931542,1.61415536,1573.2,1573.1,3.76187]
[1744797932154,0.00955536,1573.2,1573.1,3.76187]
[1744797933951,1.28094536,1573.2,1573.1,3.76187]
[1744797934152,2.91184536,1573.2,1573.1,1.27147]
[1744797934354,3.78504536,1573.2,1573.1,1.27147]
[1744797934853,1.27147,1573.1,1573.0,43.70919]
[1744797935150,2.94367,1573.1,1573.0,42.07149]
[1744797935352,3.76167,1573.1,1573.0,42.07149]
[1744797935651,3.76167,1573.1,1573.0,1.27149]
[1744797935950,3.76167,1573.1,1573.0,42.07149]
[1744797936251,1.6722,1573.1,1573.0,42.07149]
[1744797936451,1.6722,1573.1,1573.0,43.70919]
[1744797937654,1.28094536,1573.2,1573.1,1.27147]
[1744797937952,0.00955536,1573.2,1573.1,3.84777]
[1744797938254,1.69325536,1573.2,1573.1,3.84777]
[1744797938551,2.96464536,1573.2,1573.1,3.84777]
[1744797939154,1.69325536,1573.2,1573.1,3.84777]
[1744797939652,1.69325536,1573.2,1573.1,1.27147]
[1744797940546,2.96464536,1573.2,1573.1,1.27147]
[1744797941556,1.69325536,1573.2,1573.1,1.27147]
[1744797941955,2.96464536,1573.2,1573.1,1.27147]
[1744797944557,1.69325536,1573.2,1573.1,1.27147]
[1744797945957,2.96464536,1573.2,1573.1,2.90257]
[1744797946555,0.00955536,1573.2,1573.1,2.90257]
[1744797946764,0.00955536,1573.2,1573.1,15.48537]
[1744797949462,0.00955536,1573.2,1573.1,10.48537]
[1744797950063,0.00955536,1573.2,1573.1,7.27757]
[1744797950468,1.28094536,1573.2,1573.1,2.90257]
[1744797951062,1.69315536,1573.2,1573.1,1.27147]
[1744797951360,0.00955536,1573.2,1573.1,1.27147]
[1744797951561,0.00955536,1573.2,1573.1,3.03177]
[1744797957770,1.66845536,1573.2,1573.1,3.03177]
[1744797957959,1.66845536,1573.2,1573.1,1.27147]
[1744797958361,2.93984536,1573.2,1573.1,1.27147]
[1744797959169,1.66845536,1573.2,1573.1,1.27147]
[1744797959666,2.51825536,1573.2,1573.1,1.27147]
[1744797960658,2.51825536,1573.2,1573.1,2.93147]
[1744797962671,2.51825536,1573.2,1573.1,1.27147]
[1744797962672,3.78964536,1573.2,1573.1,1.27147]
[1744797962872,2.51825536,1573.2,1573.1,1.27147]
[1744797963274,2.51825536,1573.2,1573.1,3.03187]
[1744797964868,3.78964536,1573.2,1573.1,3.03187]
[1744797965068,3.78964536,1573.2,1573.1,1.27147]
[1744797966266,2.51825536,1573.2,1573.0,40.8]
[1744797966469,2.94327,1573.1,1573.0,40.8]
[1744797966667,1.27155,1573.0,1572.9,0.00955536]
[1744797966973,1.27177,1572.8,1572.7,1.27171]
[1744797967269,1.27177,1572.8,1572.7,42.07171]
[1744797967661,3.80967,1572.8,1572.7,42.07171]
[1744797967867,1.2718,1572.7,1572.6,9.71778871]
[1744797968067,2.9548,1572.7,1572.6,9.72734407]
[1744797968462,1.683,1572.7,1572.6,50.52734407]
[1744797968667,1.683,1572.7,1572.6,42.08135536]
[1744797968872,2.9548,1572.7,1572.6,42.08135536]
[1744797969276,1.683,1572.7,1572.6,42.08135536]
[1744797971077,1.683,1572.7,1572.6,43.79685536]
[1744797974779,2.9548,1572.7,1572.6,42.08135536]
[1744797975380,2.9548,1572.7,1572.6,40.80955536]
[1744797975575,2.9548,1572.7,1572.6,0.00955536]
[1744797976170,2.9548,1572.7,1572.6,1.28143536]
[1744797977792,2.9548,1572.7,1572.6,0.00955536]
[1744797979688,1.683,1572.7,1572.6,1.28143536]
[1744797980090,6.7918,1572.9,1572.8,1.27171]
[1744797980290,8.06343,1572.9,1572.8,1.27171]
[1744797980490,9.68543,1572.9,1572.8,1.27171]
[1744797982089,9.68543,1572.9,1572.7,5.67459]
[1744797982090,1.27171,1572.8,1572.7,3.76682]
[1744797982293,6.7918,1572.9,1572.8,1.27171]
[1744797982493,6.7918,1572.9,1572.8,3.77321]
[1744797982698,6.7918,1572.9,1572.8,44.57321]
[1744797982895,8.4138,1572.9,1572.8,44.57321]
[1744797983196,2.4778,1572.9,1572.8,44.57321]
[1744797983396,9.48802808,1573.0,1572.9,1.27163]
[1744797983597,10.75957808,1573.0,1572.9,2.99773]
[1744797983897,11.23482808,1573.0,1572.9,2.99773]
[1744797984097,8.02702808,1573.0,1572.9,2.99773]
[1744797984290,6.28022808,1573.0,1572.9,2.99773]
[1744797984497,6.28022808,1573.0,1572.9,6.20553]
[1744797984788,0.00955536,1573.2,1573.1,1.27147]
[1744797985195,0.00955536,1573.2,1573.1,42.07147]
[1744797985502,0.00955536,1573.2,1573.1,57.21557]
[1744797986193,6.28022808,1573.3,1573.2,1.27139]
[1744797986395,6.28022808,1573.3,1573.2,3.00409]
[1744797986697,6.28022808,1573.3,1573.2,8.00409]
[1744797986889,6.28022808,1573.3,1573.2,49.31347608]
[1744797987490,8.35864602,1573.4,1573.3,1.27131]
[1744797987696,0.00955536,1573.4,1573.3,6.21181]
[1744797987894,0.00955536,1573.4,1573.3,11.21181]
[1744797988296,0.00955536,1573.4,1573.3,52.01181]
[1744797989096,0.00955536,1573.4,1573.3,47.01181]
[1744797989296,0.00955536,1573.4,1573.3,43.80401]
[1744797990803,0.00955536,1573.4,1573.3,42.07131]
[1744797990804,1.28078536,1573.4,1573.3,42.07131]
[1744797990997,2.98098536,1573.4,1573.3,40.8]
[1744797991796,2.98098536,1573.4,1573.2,1.27135]
[1744797991797,1.27136,1573.3,1573.2,1.27135]
[1744797991999,2.5088,1573.3,1573.2,1.27135]
[1744797992295,3.78011,1573.3,1573.2,42.07135]
[1744797992698,3.78011,1573.3,1573.2,1.27135]
[1744797993801,0.00955536,1573.4,1573.3,1.27131]
[1744797994493,0.00955536,1573.4,1573.3,2.96181]
[1744797995301,1.28078536,1573.4,1573.3,2.96181]
[1744797995490,1.27131,1573.3,1573.2,5.64536]
[1744797997095,1.27131,1573.3,1573.2,7.33806]
[1744797999604,1.27131,1573.3,1573.2,2.96406]
[1744797999901,3.02273536,1573.4,1573.3,1.27131]
[1744798000102,3.02273536,1573.4,1573.3,2.86671]
[1744798000605,1.75145536,1573.4,1573.3,2.86671]
[1744798001007,3.02268536,1573.4,1573.3,2.86671]
[1744798001505,1.75145536,1573.4,1573.3,2.86671]
[1744798002196,0.00955536,1573.4,1573.3,6.07451]
[1744798002394,0.00955536,1573.4,1573.3,10.44851]
[1744798003210,0.00955536,1573.4,1573.3,7.24071]
[1744798003408,2.14649,1573.7,1573.6,1.27107]
[1744798003812,0.8755,1573.7,1573.6,1.27107]
[1744798004301,0.8755,1573.7,1573.6,3.02107]
[1744798005403,2.4916,1573.7,1573.6,3.02107]
[1744798007803,1.27097,1573.8,1573.7,1.27099]
[1744798008411,3.02437,1573.8,1573.7,1.27099]
[1744798008993,1.27107,1573.7,1573.6,1.27102]
[1744798009298,3.02447,1573.7,1573.6,1.27102]
[1744798010409,1.7534,1573.7,1573.6,1.27102]
[1744798010805,1.7534,1573.7,1573.6,2.87812]
[1744798015611,3.02439,1573.7,1573.6,2.87812]
[1744798015813,3.02439,1573.7,1573.6,1.27102]
[1744798016311,1.7534,1573.7,1573.6,1.27102]
[1744798016709,2.6006,1573.7,1573.6,1.27102]
[1744798017312,2.6006,1573.7,1573.6,2.90202]
[1744798017712,3.87159,1573.7,1573.6,1.27102]
[1744798018218,2.6006,1573.7,1573.6,1.27102]
[1744798018718,3.87159,1573.7,1573.6,1.27102]
[1744798019914,2.6006,1573.7,1573.6,1.27102]
[1744798020927,3.87159,1573.7,1573.6,1.27102]
[1744798021423,2.6006,1573.7,1573.6,1.27102]
[1744798023028,3.87159,1573.7,1573.6,1.27102]
[1744798023723,1.27107,1573.6,1573.5,0.00955536]
[1744798024020,3.75357,1573.6,1573.5,0.00955536]
[1744798024823,8.75357,1573.6,1573.5,0.00955536]
[1744798025628,2.4825,1573.6,1573.5,1.28070536]
[1744798026727,2.4825,1573.6,1573.5,2.96630536]
[1744798027721,0.8472,1573.7,1573.6,1.27107]
[1744798027926,3.349,1573.7,1573.6,2.95667]
[1744798028527,4.61999,1573.7,1573.6,2.95667]
[1744798029325,4.61999,1573.7,1573.6,1.27107]
[1744798029521,1.27096,1573.8,1573.6,1.27107]
[1744798029727,8.34909066,1573.9,1573.8,1.27091]
[1744798030228,10.81729066,1573.9,1573.8,1.27091]
[1744798030429,12.08812066,1573.9,1573.8,1.27091]
[1744798030723,4.57993,1573.9,1573.8,1.27091]
[1744798031623,3.3091,1573.9,1573.8,1.27091]
[1744798031831,11.55689066,1574.1,1574.0,1.27074]
[1744798032131,14.84679066,1574.1,1574.0,1.27074]
[1744798032530,14.04529066,1574.1,1574.0,1.27074]
[1744798032827,11.55689066,1574.1,1574.0,3.01494]
[1744798033040,11.55689066,1574.1,1574.0,43.81494]
[1744798033532,11.55689066,1574.1,1574.0,42.07074]
[1744798033729,13.20439066,1574.1,1574.0,43.81494]
[1744798034830,4.8553,1574.1,1574.0,43.81494]
[1744798035632,1.6475,1574.1,1574.0,43.81494]
[1744798038331,1.6475,1574.1,1574.0,42.07074]
[1744798038531,7.91816,1574.1,1574.0,40.8]
[1744798038739,1.27091,1573.8,1573.7,1.27094]
[1744798039031,1.27091,1573.8,1573.6,1.6954]
[1744798039032,1.27099,1573.7,1573.6,1.271]
[1744798039232,2.14869,1573.7,1573.6,42.071]
[1744798039427,0.8777,1573.7,1573.6,42.071]
[1744798039628,2.98199,1573.7,1573.6,42.071]
[1744798040432,4.71629,1573.7,1573.6,42.071]
[1744798040832,4.71629,1573.7,1573.6,40.8]
[1744798041030,1.27107,1573.6,1573.5,0.00955536]
[1744798041334,2.96257,1573.6,1573.5,0.00955536]
[1744798041928,7.96257,1573.6,1573.5,0.00955536]
[1744798042124,1.27115,1573.5,1573.4,21.19460784]
[1744798042327,6.17045,1573.5,1573.4,21.19460784]
[1744798042539,3.17817,1573.4,1573.0,3.2078]
[1744798042838,1.27147,1573.1,1573.0,4.47932]
[1744798043028,1.27146,1573.2,1573.1,1.27145]
[1744798043338,1.27147,1573.1,1573.0,4.48884536]
[1744798044233,1.27147,1573.1,1573.0,1.28104536]
[1744798045638,2.96294,1573.2,1573.1,1.27147]
[1744798045938,1.6915,1573.2,1573.1,1.27147]
[1744798046131,1.6915,1573.2,1573.1,2.86647]
[1744798046628,3.21735536,1573.3,1573.2,1.27139]
[1744798046834,0.00955536,1573.3,1573.2,2.86639]
[1744798047040,0.00955536,1573.3,1573.2,4.57019]
[1744798051830,0.00955536,1573.3,1573.2,9.57019]
[1744798052542,2.99285,1573.7,1573.6,1.27107]
[1744798053538,1.27107,1573.6,1573.5,3.03208]
[1744798053845,2.90083,1573.6,1573.5,1.27115]
[1744798055949,1.27131,1573.4,1573.3,1.27127]
[1744798056436,3.88031,1573.4,1573.3,1.27127]
[1744798058245,1.27131,1573.3,1573.2,43.70243]
[1744798058447,3.01941,1573.3,1573.2,42.07133]
[1744798058950,1.27147,1573.1,1573.0,0.00955536]
[1744798059445,8.01357,1573.1,1573.0,0.00955536]
[1744798060746,1.27171,1572.8,1572.7,40.8]
[1744798061242,1.27188,1572.6,1572.5,8.44598871]
[1744798061842,3.01398,1572.6,1572.5,8.44598871]
[1744798065244,1.27196,1572.5,1572.4,42.08159536]
[1744798065443,3.02166,1572.5,1572.4,42.08159536]
[1744798065741,1.7497,1572.5,1572.4,42.08159536]
[1744798066352,3.02166,1572.5,1572.4,42.08159536]
[1744798067249,1.7497,1572.5,1572.4,42.08159536]
[1744798067450,3.02166,1572.5,1572.4,42.08159536]
[1744798069647,1.7497,1572.5,1572.4,42.08159536]
[1744798069847,3.02166,1572.5,1572.4,42.08159536]
[1744798070554,1.7497,1572.5,1572.4,42.08159536]
[1744798070751,3.02166,1572.5,1572.4,42.08159536]
[1744798073852,4.07025536,1572.7,1572.4,40.80955536]
[1744798074046,1.27196,1572.5,1572.4,42.08151536]
[1744798074853,1.707,1572.6,1572.4,40.80955536]
[1744798075047,1.27237,1572.1,1572.0,1.27235]
[1744798075248,6.3618,1572.1,1571.6,5.2146]
[1744798075553,1.27258,1571.8,1571.7,43.709]
[1744798076950,1.27258,1571.8,1571.7,42.4364]
[1744798077145,1.27258,1571.8,1571.7,40.8]
[1744798078066,1.27258,1571.8,1571.6,0.00955536]
[1744798078067,1.2726,1571.7,1571.6,0.00955536]
[1744798078245,2.9704,1571.7,1571.6,0.00955536]
[1744798078451,7.3424,1571.7,1571.6,0.00955536]
[1744798080150,12.3424,1571.7,1571.6,0.00955536]
[1744798080751,1.27285,1571.4,1571.3,9.71891871]
[1744798080956,4.48065,1571.4,1571.3,11.40763664]
[1744798081157,4.48065,1571.4,1571.3,50.93470664]
[1744798081459,4.48065,1571.4,1571.3,40.8]
[1744798083257,4.48065,1571.4,1571.3,42.07293]
[1744798083458,4.48065,1571.4,1571.3,42.498]
[1744798087561,6.18505,1571.4,1571.3,42.498]
[1744798091261,4.48065,1571.4,1571.3,42.498]
[1744798091462,1.27285,1571.4,1571.3,43.77093]
[1744798091663,1.27284,1571.5,1571.4,1.2728]
[1744798091963,1.27284,1571.5,1571.4,3.8753]